[Event "WCCC U10 2019"]
[Site "Weifang"]
[Date "2019.09.01"]
[Round "11.9"]
[White "Woodward, Andy"]
[Black "Chennareddy, Yuvraj"]
[Result "1-0"]
[ECO "D36"]
[WhiteElo "1522"]
[BlackElo "1727"]
[Annotator "NA RC"]
[PlyCount "117"]
[EventDate "2019.08.21"]
[EventType "swiss"]
[EventCountry "CHN"]
[SourceTitle "playchess.com"]
[Source "ChessBase"]
[SourceQuality "1"]
[TimeControl "40/5400+30:1800+30"]

1. d4 {[%emt 0:00:00]} d5 {[%emt 0:00:00]} 2. c4 {[%emt 0:00:00]} e6 {[%emt 0:00:00]} 3. Nc3 {[%emt 0:00:00]} Nf6 {[%emt 0:00:01]} 4. cxd5 {[%emt 0:00:00]} exd5 {[%emt 0:00:15]} 5. Bg5 {[%emt 0:00:01]} c6 {[%emt 0:00:36]} 6. Qc2 {[%emt 0:00:05]} Be7 {[%emt 0:00:24]} 7. e3 {[%emt 0:00:07]} O-O {[%emt 0:00:19]} 8. Bd3 {[%emt 0:00:04]} Nbd7 {[%emt 0:00:03]} 9. Nge2 {[%emt 0:00:10]} Re8 {[%emt 0:00:13]} 10. O-O {[%emt 0:00:07]} Nf8 {[%emt 0:00:04]} 11. f3 {[%emt 0:00:12]} Be6 {[%emt 0:00:05]} 12. Rad1 {[%emt 0:00:05]} Rc8 {[%emt 0:00:11]} 13. h3 {[%emt 0:00:07]} N6d7 {[%emt 0:00:23]} 14. Bxe7 {[%emt 0:06:30]} Qxe7 {[%emt 0:02:50]} 15. e4 {[%emt 0:04:42]} dxe4 {[%emt 0:00:09]} 16. fxe4 {[%emt 0:00:14]} c5 {[%emt 0:00:01]} 17. d5 {[%emt 0:03:02]} c4 {[%emt 0:00:55]} 18. dxe6 {[%emt 0:02:31]} Nxe6 {[%emt 0:01:44]} 19. Nd5 {[%emt 0:01:46]} Qc5+ {[%emt 0:01:04]} 20. Kh1 {[%emt 0:00:33]} Ne5 {[%emt 0:06:59]} 21. Bxc4 {[%emt 0:13:04]} Nxc4 {[%emt 0:08:14]} 22. b3 {[%emt 0:03:47]} Nd6 {[%emt 0:13:26]} 23. Qd3 {[%emt 0:03:49]} Ng5 {[%emt 0:00:30]} 24. Rc1 {[%emt 0:02:02]} Qa5 {[%emt 0:20:54]} 25. Ne7+ {[%emt 0:34:02]} Rxe7 {[%emt 0:00:59]} 26. Qxd6 {[%emt 0:00:30]} Ree8 {[%emt 0:15:58]} 27. Qd7 {[%emt 0:09:49]} Rcd8 {[%emt 0:14:42]} 28. Qxb7 {[%emt 0:00:26]} Rxe4 {[%emt 0:03:02]} 29. Ng3 {[%emt 0:02:14]} Rb4 {[%emt 0:03:01]} 30. Qe7 {[%emt 0:00:46]} Rb5 {[%emt 0:05:12]} 31. b4 {[%emt 0:03:15]} Qb6 {[%emt 0:01:51]} 32. h4 {[%emt 0:01:48]} Ne6 {[%emt 0:01:22]} 33. Qxf7+ {[%emt 0:01:54]} Kh8 {[%emt 0:00:01]} 34. Rc4 {[%emt 0:01:51]} Qd6 {[%emt 0:00:59]} 35. Nf5 {[%emt 0:02:21]} Qd3 {[%emt 0:00:26]} 36. Rcf4 {[%emt 0:00:54]} Qd7 {[%emt 0:00:35]} 37. Qxd7 {[%emt 0:00:36]} Rxd7 {[%emt 0:00:09]} 38. Re4 {[%emt 0:00:17]} Nf8 {[%emt 0:00:26]} 39. Nd4 {[%emt 0:01:18]} Rb8 {[%emt 0:00:21]} 40. Nc6 {[%emt 0:00:53]} Rc8 {[%emt 0:00:46]} 41. Ne5 {[%emt 0:31:43]} Rb7 {[%emt 0:30:36]} 42. Nf7+ {[%emt 0:00:07]} Kg8 {[%emt 0:00:35]} 43. Nd6 {[%emt 0:00:03]} Rbc7 {[%emt 0:00:00]} 44. Nxc8 {[%emt 0:00:00]} Rxc8 {[%emt 0:00:00]} 45. Re7 {[%emt 0:00:00]} Rc4 {[%emt 0:00:00]} 46. Re8 {[%emt 0:00:00]} Rxh4+ {[%emt 0:00:00]} 47. Kg1 {[%emt 0:00:00]} h5 {[%emt 0:00:00]} 48. Rexf8+ {[%emt 0:00:00]} Kh7 {[%emt 0:00:00]} 49. R8f4 {[%emt 0:00:00]} Rxf4 {[%emt 0:00:00]} 50. Rxf4 {[%emt 0:00:00]} g5 {[%emt 0:00:00]} 51. Rf7+ {[%emt 0:00:00]} Kg6 {[%emt 0:00:00]} 52. Rxa7 {[%emt 0:00:00]} g4 {[%emt 0:00:00]} 53. b5 {[%emt 0:00:00]} h4 {[%emt 0:00:00]} 54. b6 {[%emt 0:00:00]} h3 {[%emt 0:00:00]} 55. b7 {[%emt 0:00:00]} hxg2 {[%emt 0:00:00]} 56. b8=Q {[%emt 0:00:00]} g3 {[%emt 0:00:00]} 57. Qe5 {[%emt 0:00:00]} Kh6 {[%emt 0:00:00]} 58. Qxg3 {[%emt 0:00:00]} Kh5 {[%emt 0:00:00]} 59. Rh7# {[%emt 0:00:00]} 1-0

[Event "WCCC U10 2019"]
[Site "Weifang"]
[Date "2019.09.01"]
[Round "11.10"]
[White "Sodbileg, Uranjargal"]
[Black "Xie, Bryan"]
[Result "1/2-1/2"]
[ECO "A49"]
[WhiteElo "1419"]
[BlackElo "1696"]
[Annotator "NA RC"]
[PlyCount "152"]
[EventDate "2019.08.21"]
[EventType "swiss"]
[EventCountry "CHN"]
[SourceTitle "playchess.com"]
[Source "ChessBase"]
[SourceQuality "1"]
[TimeControl "40/5400+30:1800+30"]

1. e4 {[%emt 0:00:00]} d6 {[%emt 0:00:00]} 2. d4 {[%emt 0:00:00]} Nf6 {[%emt 0:00:00]} 3. Nc3 {[%emt 0:00:00]} g6 {[%emt 0:00:10]} 4. g3 {[%emt 0:00:30]} Bg7 {[%emt 0:00:08]} 5. Bg2 {[%emt 0:00:10]} O-O {[%emt 0:00:15]} 6. Nf3 {[%emt 0:00:14]} c6 {[%emt 0:01:47]} 7. O-O {[%emt 0:00:12]} Qc7 {[%emt 0:00:33]} 8. Re1 {[%emt 0:00:40]} Bg4 {[%emt 0:00:58]} 9. h3 {[%emt 0:00:39]} Bxf3 {[%emt 0:00:21]} 10. Qxf3 {[%emt 0:00:11]} Nbd7 {[%emt 0:00:37]} 11. Qe2 {[%emt 0:01:20]} e5 {[%emt 0:02:00]} 12. dxe5 {[%emt 0:00:13]} dxe5 {[%emt 0:00:29]} 13. Be3 {[%emt 0:00:28]} Rfd8 {[%emt 0:00:35]} 14. a4 {[%emt 0:00:58]} Nf8 {[%emt 0:01:18]} 15. Nb1 {[%emt 0:00:49]} Ne6 {[%emt 0:00:41]} 16. c3 {[%emt 0:00:11]} Bf8 {[%emt 0:02:16]} 17. Qf3 {[%emt 0:00:31]} Ne8 {[%emt 0:01:26]} 18. Nd2 {[%emt 0:02:39]} Nc5 {[%emt 0:17:36]} 19. Reb1 {[%emt 0:02:39]} Be7 {[%emt 0:02:25]} 20. Bf1 {[%emt 0:00:35]} Ne6 {[%emt 0:01:32]} 21. h4 {[%emt 0:01:37]} N8g7 {[%emt 0:01:53]} 22. Bc4 {[%emt 0:01:00]} Bc5 {[%emt 0:03:02]} 23. Bh6 {[%emt 0:02:53]} a5 {[%emt 0:01:01]} 24. Nf1 {[%emt 0:00:10]} Bf8 {[%emt 0:02:29]} 25. Nh2 {[%emt 0:00:27]} Qb8 {[%emt 0:04:09]} 26. Ng4 {[%emt 0:00:23]} Nh5 {[%emt 0:01:25]} 27. Be3 {[%emt 0:01:20]} Qc7 {[%emt 0:00:44]} 28. Kg2 {[%emt 0:00:53]} Rab8 {[%emt 0:07:02]} 29. Rh1 {[%emt 0:00:55]} Bg7 {[%emt 0:00:50]} 30. Nh6+ {[%emt 0:00:30]} Bxh6 {[%emt 0:00:09]} 31. Bxh6 {[%emt 0:00:06]} Rd6 {[%emt 0:03:45]} 32. Rad1 {[%emt 0:00:15]} Rbd8 {[%emt 0:00:12]} 33. Rxd6 {[%emt 0:01:46]} Rxd6 {[%emt 0:01:09]} 34. Rd1 {[%emt 0:00:22]} Nhg7 {[%emt 0:07:50]} 35. Rxd6 {[%emt 0:02:32]} Qxd6 {[%emt 0:00:07]} 36. Qe3 {[%emt 0:00:45]} Qc5 {[%emt 0:01:38]} 37. Qd3 {[%emt 0:00:41]} Qe7 {[%emt 0:00:58]} 38. Ba2 {[%emt 0:01:39]} Nc5 {[%emt 0:00:30]} 39. Qc4 {[%emt 0:00:51]} Nge6 {[%emt 0:01:16]} 40. Be3 {[%emt 0:00:16]} Qd6 {[%emt 0:01:45]} 41. b4 {[%emt 0:40:20]} Nxa4 {[%emt 0:34:17]} 42. bxa5 {[%emt 0:00:07]} Nb2 {[%emt 0:00:24]} 43. Qe2 {[%emt 0:00:24]} Na4 {[%emt 0:03:18]} 44. Qc2 {[%emt 0:01:46]} Nac5 {[%emt 0:03:40]} 45. Bc4 {[%emt 0:00:26]} Qc7 {[%emt 0:01:56]} 46. Qa2 {[%emt 0:01:51]} Kg7 {[%emt 0:01:02]} 47. Bxe6 {[%emt 0:01:51]} Nxe6 {[%emt 0:00:06]} 48. Bb6 {[%emt 0:04:42]} Qd7 {[%emt 0:01:49]} 49. Qe2 {[%emt 0:00:22]} Nc7 {[%emt 0:01:49]} 50. h5 {[%emt 0:02:13]} Nb5 {[%emt 0:01:29]} 51. Qe3 {[%emt 0:02:17]} h6 {[%emt 0:02:44]} 52. hxg6 {[%emt 0:02:01]} fxg6 {[%emt 0:00:05]} 53. Qc5 {[%emt 0:03:31]} Qd6 {[%emt 0:01:30]} 54. Qe3 {[%emt 0:00:21]} Qd7 {[%emt 0:02:42]} 55. Bc5 {[%emt 0:00:11]} Qd8 {[%emt 0:00:31]} 56. c4 {[%emt 0:02:54]} Nd4 {[%emt 0:10:42]} 57. Qc3 {[%emt 0:03:52]} Qf6 {[%emt 0:01:57]} 58. Bxd4 {[%emt 0:00:47]} exd4 {[%emt 0:00:05]} 59. Qb2 {[%emt 0:00:06]} Qe7 {[%emt 0:00:00]} 60. Qxd4+ {[%emt 0:00:00]} Kg8 {[%emt 0:00:00]} 61. e5 {[%emt 0:00:00]} Kf7 {[%emt 0:00:00]} 62. f4 {[%emt 0:00:00]} Qe6 {[%emt 0:00:00]} 63. Qd3 {[%emt 0:00:00]} h5 {[%emt 0:00:00]} 64. Qb3 {[%emt 0:00:00]} Qd7 {[%emt 0:00:00]} 65. c5+ {[%emt 0:00:00]} Kf8 {[%emt 0:00:00]} 66. Kf3 {[%emt 0:00:00]} Qg4+ {[%emt 0:00:00]} 67. Kf2 {[%emt 0:00:00]} Qd7 {[%emt 0:00:00]} 68. Ke2 {[%emt 0:00:00]} Qg4+ {[%emt 0:00:00]} 69. Qf3 {[%emt 0:00:00]} Qe6 {[%emt 0:00:00]} 70. Qd3 {[%emt 0:00:00]} Qa2+ {[%emt 0:00:00]} 71. Ke3 {[%emt 0:00:00]} Qxa5 {[%emt 0:00:00]} 72. Qxg6 {[%emt 0:00:00]} Qe1+ {[%emt 0:00:00]} 73. Kd4 {[%emt 0:00:00]} Qb4+ {[%emt 0:00:00]} 74. Ke3 {[%emt 0:01:24]} Qe1+ 75. Kf3 {[%emt 0:00:01]} Qf1+ 76. Ke3 Qe1+ 1/2-1/2